bitfinex-derivatives/quotes_ETHF0:USTF0_20251211
["timestamp","ask_amount","ask_price","bid_price","bid_amount"]
[1765428206448,3.2078,3196.9,3196.8,1.9922]
[1765428206746,3.2078,3196.9,3196.8,0.9555]
[1765428206747,5.1321,3196.9,3196.8,0.9555]
[1765428206947,5.1321,3196.9,3196.8,1.9922]
[1765428207147,4.1712,3196.9,3196.8,1.9922]
[1765428207446,5.1321,3196.9,3196.8,1.9922]
[1765428207645,4.1712,3196.9,3196.8,1.9922]
[1765428209245,5.0779,3197.3,3197.2,1.921]
[1765428209445,0.9179,3197.3,3197.2,1.921]
[1765428209647,0.920265,3197.4,3197.3,1.921]
[1765428209847,1.8701,3197.2,3197.1,2.07736]
[1765428210354,1.8701,3197.2,3197.1,0.15636]
[1765428211142,1.8701,3197.2,3196.5,3.2078]
[1765428211753,1.8701,3197.2,3196.5,3.36419]
[1765428212856,1.8701,3197.2,3197.1,0.9615]
[1765428213056,1.8701,3197.2,3197.1,1.921]
[1765428213356,0.9179,3197.2,3197.1,1.921]
[1765428213554,1.872465,3197.4,3197.3,1.921]
[1765428214058,1.872465,3197.4,3197.3,0.9615]
[1765428214458,1.872465,3197.4,3196.9,0.15637]
[1765428214659,0.9179,3197.0,3196.9,2.07737]
[1765428215064,5.0779,3197.3,3197.2,0.9615]
[1765428215256,5.0779,3197.3,3196.9,0.15637]
[1765428215557,1.872465,3197.4,3197.3,1.921]
[1765428215761,0.920265,3197.4,3197.3,1.921]
[1765428216154,0.002365,3197.4,3197.3,1.921]
[1765428216354,0.920265,3197.4,3197.3,1.921]
[1765428216755,1.872465,3197.4,3197.3,1.921]
[1765428217159,0.920265,3197.4,3197.3,1.921]
[1765428217458,0.002365,3197.4,3197.3,1.921]
[1765428217662,0.002365,3197.4,3197.3,5.1288]
[1765428218458,0.002365,3197.4,3197.3,5.28515]
[1765428219061,2.428,3196.5,3195.7,3.2078]
[1765428219367,3.2078,3196.9,3196.4,1.921]
[1765428219558,5.6358,3196.5,3196.4,1.921]
[1765428219758,4.6836,3196.5,3196.4,1.921]
[1765428219967,0.5579,3196.5,3196.4,1.921]
[1765428220165,2.428,3196.5,3196.4,1.921]
[1765428220465,2.428,3196.5,3196.4,0.00299405]
[1765428220660,2.428,3196.5,3196.4,0.96449405]
[1765428221774,2.428,3196.5,3196.4,1.92399405]
[1765428222066,4.1257,3196.9,3196.8,0.9615]
[1765428222265,5.0779,3196.9,3196.4,0.00299405]
[1765428223365,5.0779,3196.9,3196.8,1.921]
[1765428223561,3.2078,3196.9,3196.8,1.921]
[1765428225476,5.0779,3197.2,3197.1,1.921]
[1765428225969,1.872465,3197.4,3197.3,1.921]
[1765428226170,0.9179,3197.1,3197.0,1.11786]
[1765428226374,1.872465,3197.4,3197.3,0.9615]
[1765428229080,1.872465,3197.4,3197.1,0.15636]
[1765428229380,1.8701,3197.2,3197.1,2.07736]
[1765428229578,5.0779,3197.2,3197.1,2.07736]
[1765428229973,5.0779,3197.2,3197.1,0.15636]
[1765428232078,1.8701,3197.2,3197.1,0.15636]
[1765428232277,5.0779,3197.2,3197.1,0.15636]
[1765428235774,2.428,3196.5,3196.4,1.92399405]
[1765428235981,5.6358,3196.5,3196.4,0.00299405]
[1765428237175,5.6358,3196.5,3196.3,0.15639]
[1765428237176,1.8701,3196.2,3196.1,0.00469373]
[1765428238279,1.8701,3196.2,3196.1,0.00805104]
[1765428239983,1.8701,3196.2,3194.9,3.2078]
[1765428240185,5.8006,3195.5,3195.4,2.1012]
[1765428240373,5.8006,3195.5,3195.4,1.0502]
[1765428240974,5.8006,3195.5,3195.4,1.05313545]
[1765428241176,5.8006,3195.5,3195.4,2.10413545]
[1765428241985,5.8006,3195.5,3195.4,0.00293545]
[1765428242481,5.8006,3195.5,3195.4,1.05313545]
[1765428242782,5.8006,3195.5,3195.4,2.10413545]
[1765428245983,5.8006,3195.5,3195.4,0.00293545]
[1765428246683,5.8006,3195.5,3195.4,1.05313545]
[1765428247183,5.8006,3195.5,3195.4,0.00293545]
[1765428247488,2.0054,3194.2,3193.6,3.2078]
[1765428247675,5.2132,3194.2,3193.6,3.2078]
[1765428247987,2.0054,3193.7,3193.6,5.309]
[1765428248280,0.99947765,3193.7,3193.6,5.31169916]
[1765428248481,2.00817765,3193.7,3193.6,5.31169916]
[1765428249090,0.99947765,3193.7,3193.6,5.31169916]
[1765428249483,2.00817765,3193.7,3193.6,5.31169916]
[1765428250287,0.99947765,3193.7,3193.6,5.31169916]
[1765428251185,0.00277765,3193.7,3193.6,5.31169916]
[1765428252095,0.00277765,3193.7,3193.6,5.46822916]
[1765428253786,3.2078,3194.2,3194.1,2.01851]
[1765428254291,5.2212,3194.2,3194.1,2.01851]
[1765428254495,5.2212,3194.2,3194.1,1.08761]
[1765428254696,5.22430883,3194.2,3194.1,1.08761]
[1765428254995,2.01650883,3194.2,3194.1,2.01851]
[1765428255293,1.03140883,3194.2,3194.1,2.01851]
[1765428255485,0.00310883,3194.2,3194.1,2.01851]
[1765428255791,1.03299373,3194.5,3194.4,2.01849]
[1765428255992,2.63699373,3194.5,3194.4,0.15649]
[1765428256790,1.6472,3194.0,3193.9,0.9311]
[1765428256994,2.6323,3194.0,3193.9,0.9311]
[1765428257796,1.6472,3194.0,3193.9,2.01852]
[1765428258089,5.2212,3194.2,3194.1,1.862]
[1765428259198,2.0134,3194.2,3194.1,1.862]
[1765428259394,2.0134,3194.1,3194.0,1.08761]
[1765428259595,2.0134,3194.1,3194.0,0.15651]
[1765428260396,3.2078,3194.2,3194.0,2.01851]
[1765428260600,2.0134,3194.1,3194.0,1.08761]
[1765428260793,2.0134,3194.1,3194.0,0.15651]
[1765428269794,3.2078,3194.2,3193.6,0.00269916]
[1765428269795,1.9652,3193.7,3193.6,0.00269916]
[1765428270003,1.9652,3193.7,3193.6,0.97479916]
[1765428270607,1.9652,3193.7,3193.6,1.86169916]
[1765428270906,4.137,3194.2,3194.1,1.859]
[1765428271204,5.0739,3194.2,3194.1,3.00901939]
[1765428271705,5.0739,3194.2,3194.1,2.12211939]
[1765428272505,4.137,3194.2,3194.1,3.00901939]
[1765428273010,0.00735416,3194.5,3194.4,2.01549]
[1765428273214,0.00735416,3194.5,3194.4,6.37330939]
[1765428274702,0.00735416,3194.5,3194.4,5.22329]
[1765428279207,0.00016558,3194.5,3194.4,6.878078]
[1765428279405,1.8661,3195.2,3195.1,2.01546]
[1765428280408,1.86896894,3195.2,3195.1,2.01546]
[1765428281412,1.86896894,3195.2,3195.1,1.12856]
[1765428282512,1.86896894,3195.2,3195.1,2.01546]
[1765428283615,0.93206894,3195.2,3195.1,2.01546]
[1765428283813,1.86896894,3195.2,3195.1,2.01546]
[1765428284410,1.86896894,3195.2,3195.1,1.12856]
[1765428284614,1.86896894,3195.2,3195.1,2.01546]
[1765428285913,1.86896894,3195.2,3195.1,0.15646]
[1765428286415,1.86896894,3195.2,3195.1,2.01546]
[1765428287020,0.00286894,3195.2,3195.1,2.01546]
[1765428287219,1.86896894,3195.2,3195.1,0.15646]
[1765428287416,1.86896894,3195.2,3195.1,2.01546]
[1765428287615,1.86896894,3195.2,3195.1,1.12856]
[1765428288018,1.86896894,3195.2,3195.1,2.01546]
[1765428290521,1.86896894,3195.2,3195.1,1.12856]
[1765428290822,1.86896894,3195.2,3195.1,0.15646]
[1765428291818,0.00286894,3195.2,3195.1,2.01546]
[1765428292522,1.86896894,3195.2,3195.1,2.01546]
[1765428292723,1.86896894,3195.2,3195.1,0.15646]
[1765428295922,1.86896894,3195.2,3195.1,1.12856]
[1765428296323,1.86896894,3195.2,3195.1,0.15646]
[1765428298023,5.07676894,3195.2,3195.1,0.15646]
[1765428298225,5.07676894,3195.2,3195.1,1.93496]
[1765428298527,5.07676894,3195.2,3195.1,1.12856]
[1765428298831,5.07676894,3195.2,3195.1,0.15646]
[1765428300623,1.6189,3194.9,3194.8,0.00469373]
[1765428300832,2.76792587,3194.9,3194.8,0.00469373]
[1765428301738,2.1197,3194.5,3194.4,0.15649]
[1765428301939,2.1197,3194.5,3193.8,3.2078]
[1765428301940,1.6189,3193.9,3193.8,1.01772]
[1765428302341,1.6189,3193.9,3193.8,0.15652]
[1765428302530,1.6189,3193.9,3193.8,1.82412]
[1765428302732,0.8078,3194.1,3194.0,1.82411]
[1765428303036,3.7086,3194.5,3194.4,0.8612]
[1765428303236,2.1197,3194.5,3194.4,2.97311587]
[1765428303431,0.5008,3194.5,3194.4,2.97311587]
[1765428303628,3.7086,3195.0,3194.9,0.8612]
[1765428303842,5.3275,3195.0,3194.9,2.81662587]
[1765428304837,1.6189,3194.9,3194.8,0.15647]
[1765428307939,1.6189,3194.9,3194.0,3.2078]
[1765428308139,1.6189,3194.2,3194.1,0.1565]
[1765428308344,4.8267,3194.2,3194.1,0.1565]
[1765428310745,1.6189,3193.7,3193.6,0.00269916]
[1765428310949,4.8267,3193.7,3193.6,0.00269916]
[1765428314742,4.8267,3193.7,3193.6,1.68159916]
[1765428314943,4.8036,3193.7,3193.6,1.68159916]
[1765428316050,4.8036,3193.7,3193.6,0.86389916]
[1765428316250,4.8036,3193.7,3193.6,0.00269916]
[1765428321358,4.8036,3193.7,3193.6,0.02158985]
[1765428323459,4.8036,3193.7,3193.6,1.81521985]
[1765428323853,4.8036,3193.7,3193.6,0.17811985]
[1765428327554,4.8036,3193.7,3193.6,0.02158985]
[1765428327950,2.0665,3194.5,3193.6,6.02158985]
[1765428328150,0.7777,3193.9,3193.8,4.7505]
[1765428328354,0.7777,3193.9,3193.8,4.76939069]
[1765428328957,1.4986,3193.9,3193.8,4.76939069]
[1765428329260,1.4986,3193.9,3193.8,1.56159069]
[1765428329560,1.4986,3193.9,3193.8,1.71811069]
[1765428330059,1.4936,3194.2,3194.1,1.4635]
[1765428330259,1.4936,3194.1,3194.0,0.89671]
[1765428330460,1.47470931,3194.1,3194.0,0.15651]
[1765428330655,1.47470931,3194.1,3194.0,0.89671]
[1765428331255,1.47470931,3194.1,3194.0,0.15651]
[1765428332061,1.47470931,3194.1,3194.0,1.62001]
[1765428333759,1.47470931,3194.1,3194.0,0.89671]
[1765428337960,1.4936,3193.7,3193.6,0.00269916]
[1765428340165,4.7014,3193.7,3193.6,0.00269916]
[1765428341565,4.7014,3193.7,3193.6,0.74289916]
[1765428342164,0.7727,3193.7,3193.6,1.46619916]
[1765428342364,1.9417,3194.0,3193.9,0.7402]
[1765428342566,1.2208,3194.0,3193.9,1.4635]
[1765428343271,1.9417,3194.0,3193.9,1.4635]
[1765428344466,1.9417,3194.0,3193.9,0.7402]
[1765428344671,1.4936,3193.9,3193.8,0.89672]
[1765428344969,0.7727,3193.9,3193.8,1.62002]
[1765428345366,1.2208,3194.0,3193.9,1.62002]
[1765428345562,1.9417,3194.0,3193.9,1.62002]
[1765428346071,1.9417,3194.0,3193.9,0.89672]
[1765428346271,1.9417,3194.0,3193.9,1.62002]
[1765428347574,1.2208,3194.0,3193.9,1.62002]
[1765428349074,4.7014,3194.2,3194.1,1.62001]
[1765428349775,4.7014,3194.2,3194.1,0.89671]
[1765428349976,4.7014,3194.2,3194.1,1.62001]
[1765428351079,4.7014,3194.2,3194.1,0.89671]
[1765428352176,3.9805,3194.2,3194.1,1.62001]
[1765428352377,4.7014,3194.2,3194.1,1.62001]
[1765428352579,4.7014,3194.2,3194.1,0.89671]
[1765428356283,4.7014,3194.2,3194.1,1.62001]
[1765428356770,4.7014,3194.2,3194.1,0.89671]
[1765428356975,4.7014,3194.2,3194.1,1.62001]
[1765428357481,4.7014,3194.2,3194.1,0.89671]
[1765428357682,4.7014,3194.2,3194.1,1.62001]
[1765428358876,4.7014,3194.2,3194.1,0.89671]
[1765428360182,4.7014,3194.2,3194.1,0.15651]
[1765428360884,4.7158,3194.2,3194.1,0.86891]
[1765428361279,4.7158,3194.2,3194.1,0.15651]
[1765428361479,5.83678172,3194.2,3194.1,0.15651]
[1765428361978,5.83678172,3194.2,3194.1,1e-05]
[1765428362284,1.4462,3193.7,3193.6,0.00269916]
[1765428366184,4.654,3193.7,3193.6,0.00269916]
[1765428366681,4.654,3193.7,3193.6,1.61612916]
[1765428366878,1.8533,3194.0,3193.6,0.15922916]
[1765428367082,1.4462,3193.7,3193.6,1.61612916]
[1765428368778,0.7109,3193.7,3193.6,1.61612916]
[1765428369585,1.8533,3194.0,3193.9,1.4569]
[1765428369779,1.4462,3193.7,3193.6,0.00269916]
[1765428369985,1.4462,3193.2,3193.1,0.15655]
[1765428370991,1.4462,3193.2,3193.1,0.15917835]
[1765428373795,1.885,3192.5,3192.4,1.4559]
[1765428374194,1.885,3192.5,3192.4,1.61248]
[1765428374793,1.88793209,3192.5,3192.4,1.61555161]
[1765428375994,1.18433209,3192.5,3192.4,1.61555161]
[1765428376190,0.00293209,3192.5,3192.4,1.61555161]
[1765428377009,1.88793209,3192.5,3192.4,1.61555161]
[1765428378399,1.18433209,3192.5,3192.4,1.61555161]
[1765428379096,1.88793209,3192.5,3192.4,0.87045161]
[1765428379301,1.88793209,3192.5,3192.4,1.61555161]
[1765428379497,1.18433209,3192.5,3192.4,1.61555161]
[1765428380209,1.88793209,3192.5,3192.4,1.61555161]
[1765428380705,1.88793209,3192.5,3192.4,0.87045161]
[1765428381906,1.88793209,3192.5,3192.4,1.61555161]
[1765428382107,1.88793209,3192.5,3192.4,0.87045161]
[1765428382300,1.18433209,3192.5,3192.4,1.61555161]
[1765428382605,0.00293209,3192.5,3192.4,1.61555161]
[1765428383611,0.41179373,3193.5,3192.9,0.15656]
[1765428383904,0.7504,3193.2,3193.1,1.4559]
[1765428384604,0.75412547,3193.2,3193.1,1.61245]
[1765428384805,1.45772547,3193.2,3193.1,1.61245]
[1765428386209,0.75412547,3193.2,3193.1,1.61245]
[1765428386604,0.00372547,3193.2,3193.1,1.61245]
[1765428386804,0.00372547,3193.2,3193.1,2.76270197]
[1765428387118,0.75412547,3193.2,3193.1,2.76270197]
[1765428387314,0.00372547,3193.2,3193.1,2.76270197]
[1765428387813,3.2078,3194.0,3193.9,1.4559]
[1765428388009,4.6618,3194.4,3194.3,0.7108]
[1765428388204,1.4356,3194.3,3194.2,2.57985197]
[1765428388411,0.732,3194.3,3194.2,2.57985197]
[1765428388608,0.7311,3194.1,3194.0,0.6902]
[1765428388813,1.4631,3193.9,3193.8,1.58612]
[1765428389213,1.4631,3193.9,3193.8,0.84672]
[1765428390111,1.4631,3193.9,3193.8,0.15652]
[1765428391216,1.4631,3193.6,3193.5,0.00469373]
[1765428393010,1.4631,3193.4,3193.3,0.15654]
[1765428393218,2.61335197,3193.4,3193.3,0.15654]
[1765428393418,1.4631,3193.4,3193.3,0.15654]
[1765428393620,1.4631,3193.4,3193.3,0.84674]
[1765428393820,1.4631,3193.4,3193.3,0.15654]
[1765428395322,1.4631,3193.4,3193.3,0.84674]
[1765428395721,1.4631,3193.4,3193.3,1.58614]
[1765428396018,1.8795,3193.5,3193.4,1.4296]
[1765428396224,1.8795,3193.5,3193.4,2.73639197]
[1765428396412,3.6242,3194.0,3193.4,2.73639197]
[1765428396720,5.0873,3194.0,3193.9,0.6902]
[1765428397623,5.0873,3194.0,3193.9,1.4296]
[1765428398021,4.3562,3194.0,3193.9,1.4296]
[1765428398317,5.0873,3194.0,3193.9,1.4296]
[1765428399517,5.0873,3194.0,3193.9,0.15652]
[1765428399818,5.0873,3194.0,3193.9,0.84672]
[1765428401121,5.0873,3194.0,3193.9,0.15652]
[1765428401919,3.6242,3194.0,3193.4,2.57985197]
[1765428402423,1.4631,3193.7,3193.6,1.58613]
[1765428403418,1.4631,3193.7,3193.6,0.84673]
[1765428403719,1.4631,3193.7,3193.6,1.58613]
[1765428404422,2.61335197,3193.7,3193.6,0.15653]
[1765428404623,1.4631,3193.1,3193.0,3.36905373]
[1765428404814,1.4631,3193.1,3193.0,4.05925373]
[1765428405018,1.4631,3193.1,3193.0,4.79865373]
[1765428406019,1.4631,3193.1,3193.0,1.59085373]
[1765428406219,1.4631,3193.1,3193.0,0.85145373]
[1765428406726,1.4631,3193.1,3193.0,1.59085373]
[1765428407221,1.4631,3193.3,3193.2,0.84675]
[1765428408726,1.4631,3193.3,3193.2,0.15655]
[1765428412327,1.4631,3193.3,3193.2,0.84675]
[1765428415125,1.4631,3193.3,3191.1,0.313]
[1765428415126,3.2078,3192.1,3191.0,0.3617]
[1765428415425,3.2078,3191.1,3190.5,0.3006]
[1765428415628,1.65670321,3190.9,3190.5,0.3006]
[1765428415931,3.2078,3190.6,3190.5,0.3006]
[1765428416131,3.21036675,3190.6,3190.5,0.30383639]
[1765428417033,3.21036675,3190.6,3190.5,7.89011639]
[1765428417231,0.95158586,3190.6,3190.5,7.89011639]
[1765428417430,0.00470116,3190.9,3190.8,1.4296]
[1765428417625,1.4631,3189.8,3189.7,0.15672]
[1765428417829,4.6709,3189.8,3189.7,0.15672]
[1765428418231,4.6709,3189.8,3189.7,1.91962]
[1765428418630,4.67447389,3189.8,3189.7,0.84956289]
[1765428418830,0.00357389,3189.8,3189.7,1.92226289]
[1765428419127,1.95847389,3189.8,3189.7,1.92226289]
[1765428419327,1.95847389,3189.8,3189.7,0.15936289]
[1765428421435,1.9549,3189.1,3189.0,0.4298]
[1765428422430,1.9549,3189.1,3189.0,0.43256319]
[1765428422636,4.1201,3189.3,3189.2,2.0326]
[1765428422835,5.1627,3189.7,3189.6,0.9599]
[1765428423034,4.1201,3189.7,3189.6,2.0326]
[1765428423335,1.9549,3189.6,3189.5,0.6604]
[1765428424337,1.9549,3189.6,3189.5,1.6203]
[1765428424533,0.9123,3189.6,3189.5,2.693]
[1765428424725,1.9549,3189.6,3189.5,2.693]
[1765428425033,1.9549,3189.6,3189.5,1.6203]
[1765428425237,1.9549,3189.6,3189.5,2.693]
[1765428425832,1.9549,3189.6,3189.5,1.6203]
[1765428427331,3.2078,3189.7,3189.5,1.6203]
[1765428427332,3.2078,3189.7,3189.6,2.18933]
[1765428427734,0.00357389,3189.8,3189.7,2.18932]
[1765428428038,0.15661,3191.9,3190.5,1.6203]
[1765428428039,5.1627,3190.6,3190.5,1.6203]
[1765428429042,5.16533454,3190.6,3190.5,1.6203]
[1765428430440,5.16533454,3190.6,3190.5,0.6604]
[1765428430635,1.9549,3190.5,3190.4,0.15669]
[1765428431233,1.9549,3190.5,3190.4,1.11659]
[1765428433048,4.12273454,3190.6,3190.5,2.84968]
[1765428433738,3.21043454,3190.6,3190.5,2.84968]
[1765428435640,4.12273454,3190.6,3190.5,2.84968]
[1765428436040,0.91493454,3190.6,3190.5,2.84968]
[1765428436346,0.00263454,3190.6,3190.5,2.84968]
[1765428438143,0.00263454,3190.6,3190.5,4.50638321]
[1765428440045,1.99353454,3190.6,3190.5,1.84228]
[1765428440249,1.99353454,3190.6,3190.5,2.86038]
[1765428440844,0.91493454,3190.6,3190.5,2.86038]
[1765428441044,1.01403454,3190.6,3190.5,2.86038]
[1765428441247,0.00263454,3190.6,3190.5,2.86038]
[1765428443348,5.2835,3191.4,3191.3,1.18184]
[1765428443547,4.31476582,3191.4,3191.3,2.19994]
[1765428443748,3.2078,3191.4,3191.3,2.19994]
[1765428444451,3.21089427,3191.4,3191.3,2.20249882]
[1765428444652,3.21089427,3191.4,3191.3,2.45635797]
[1765428445051,3.21089427,3191.4,3191.3,2.20249882]
[1765428445252,4.31957628,3191.4,3191.3,2.20249882]
[1765428445553,5.33097628,3191.4,3191.3,2.20249882]
[1765428446351,4.22229427,3191.4,3191.3,2.20249882]
[1765428448349,0.00309427,3191.4,3191.3,2.20249882]
[1765428448556,0.00470116,3191.7,3191.6,2.19343]
[1765428449457,1.00860116,3191.7,3191.6,2.19343]
[1765428449656,2.00466442,3191.7,3191.6,2.19343]
[1765428449857,2.00466442,3191.7,3191.6,1.17183]
[1765428450059,2.00466442,3191.7,3191.6,0.15663]
[1765428450860,2.00466442,3191.7,3191.6,1.17183]
[1765428452768,2.00466442,3191.7,3191.6,0.15663]
[1765428454971,1.01266442,3191.7,3191.6,2.19343]
[1765428455166,1.95486442,3191.7,3191.6,2.19343]
[1765428460971,0.00876442,3191.7,3191.6,2.19343]
[1765428461173,0.89006442,3191.7,3191.6,2.19343]
[1765428461374,1.77136442,3191.7,3191.6,2.19343]
[1765428461569,1.77136442,3191.7,3191.6,0.15663]
[1765428462272,1.7426,3191.4,3191.3,0.00255882]
[1765428462771,1.7224,3191.1,3190.9,0.15666]
[1765428462976,1.7224,3190.6,3190.5,1.6756]
[1765428463274,1.7224,3190.6,3190.5,2.85388]
[1765428463876,1.7224,3190.6,3190.5,2.85629805]
[1765428465181,0.8612,3190.6,3190.5,2.85629805]
[1765428466980,1.7286,3190.6,3190.5,2.85629805]
[1765428467176,1.7286,3190.6,3190.5,0.81949805]
[1765428467475,1.7286,3190.6,3190.5,1.83469805]
[1765428467675,1.7286,3190.6,3190.5,2.85629805]
[1765428469681,1.7286,3190.6,3190.5,0.81949805]
[1765428470078,1.7286,3190.6,3190.5,1.83469805]
[1765428472975,1.7286,3190.6,3190.5,2.85629805]
[1765428474481,4.7458,3191.0,3190.9,2.0368]
[1765428474790,0.769,3190.7,3190.6,2.19348]
[1765428476083,3.2078,3191.0,3190.9,2.0368]
[1765428476277,3.9671,3191.0,3190.9,2.0368]
[1765428476678,4.7264,3191.0,3190.9,2.0368]
[1765428476984,1.5186,3191.0,3190.9,2.19346]
[1765428477181,4.7072,3191.4,3191.3,1.0152]
[1765428478195,0.7497,3191.2,3191.1,2.19345]
[1765428478989,1.4809,3191.2,3191.1,2.19345]
[1765428479687,0.7497,3191.2,3191.1,2.19345]
[1765428480182,3.9295,3191.4,3191.3,1.7996]
[1765428480383,3.2078,3191.4,3191.3,1.95624]
[1765428480584,0.00876442,3191.7,3191.6,1.7996]
[1765428480783,0.00876442,3191.7,3191.6,1.95623]
[1765428485492,0.00876442,3191.7,3191.6,5.16403]
[1765428486484,3.2078,3192.2,3192.1,1.9562]
[1765428486694,3.2078,3193.2,3193.1,1.7996]
[1765428486890,4.5368,3193.2,3193.1,1.7996]
[1765428487396,3.8723,3193.2,3193.1,1.95615]
[1765428487594,3.87564521,3193.2,3193.1,1.95934934]
[1765428488094,3.21114521,3193.2,3193.1,1.95934934]
[1765428488595,0.00334521,3193.2,3193.1,1.95934934]
[1765428489398,0.00334521,3193.2,3193.1,5.16714934]
[1765428489695,0.00334521,3193.2,3193.1,1.95934934]
[1765428494092,1.36754521,3193.2,3193.1,0.15974934]
[1765428494296,4.57534521,3193.2,3193.1,0.15974934]
[1765428494497,3.91664521,3193.2,3193.1,1.95934934]
[1765428496803,0.00334521,3193.2,3193.1,1.95934934]
[1765428498606,0.00334521,3193.2,3193.1,5.16714934]
[1765428499411,3.2078,3193.6,3193.5,2.45743]
[1765428499601,3.8202,3194.1,3194.0,2.45741]
[1765428499802,3.2078,3194.1,3194.0,2.45741]
[1765428499999,3.811,3194.1,3194.0,2.45741]
[1765428500500,3.81334119,3194.1,3194.0,2.45741]
[1765428502006,4.41654119,3194.1,3194.0,2.45741]
[1765428502195,4.41654119,3194.1,3194.0,0.15651]
[1765428502600,4.41654119,3194.1,3194.0,1.53911]
[1765428502802,3.81334119,3194.1,3194.0,2.45741]
[1765428503403,4.39064119,3194.1,3194.0,0.15651]
[1765428504508,1.1456,3193.6,3193.5,4.5904]
[1765428504703,1.1188,3193.4,3193.3,0.15654]
[1765428505004,1.1188,3193.4,3193.3,1.02274]
[1765428505213,1.1188,3193.4,3193.3,1.94104]
[1765428506910,4.2908,3193.7,3193.6,1.7845]
[1765428507107,3.2078,3193.7,3193.6,1.7845]
[1765428507608,3.7493,3193.7,3193.6,1.7845]
[1765428508009,3.2078,3193.7,3193.6,1.7845]
[1765428508506,3.2078,3193.7,3193.6,1.94103]
[1765428509304,3.7404,3193.7,3193.6,1.94103]
[1765428509603,3.2078,3193.7,3193.6,1.94103]
[1765428510808,3.21014119,3194.1,3193.7,0.15652]
[1765428511007,4.22194119,3194.1,3194.0,0.4789]
[1765428512710,4.22194119,3194.1,3194.0,1.3652]
[1765428514312,0.9594,3194.0,3193.9,0.15651]
[1765428514705,2.10964347,3194.0,3193.9,0.15651]
[1765428515610,2.28204347,3194.0,3193.9,0.15651]
[1765428515915,2.10964347,3194.0,3193.9,0.15651]
[1765428516212,0.9594,3194.0,3193.9,1.92271]
[1765428516410,0.9594,3194.0,3193.9,3.07295347]
[1765428516713,0.4797,3194.0,3193.9,3.07295347]
[1765428516905,0.9335,3194.0,3193.9,0.15651]
[1765428517712,2.08374347,3194.0,3193.9,0.15651]
[1765428519915,0.9335,3194.0,3193.9,0.15651]
[1765428520112,0.9335,3194.0,3193.9,1.04281]
[1765428520612,0.9335,3194.0,3193.9,0.15651]
[1765428521718,0.9335,3194.0,3193.9,1.04281]
[1765428522817,0.8054,3193.2,3193.1,0.00319934]
[1765428523208,3.2078,3193.3,3193.2,1.7662]
[1765428523521,3.6105,3193.3,3193.2,1.92275]
[1765428523718,4.0462,3193.7,3193.6,1.7662]
[1765428524113,3.2078,3193.7,3193.6,1.7662]
[1765428524318,3.627,3193.7,3193.6,1.7662]
[1765428524917,3.2078,3193.7,3193.6,1.7662]
[1765428525622,3.2078,3193.7,3193.6,1.92273]
[1765428527122,4.01474119,3194.1,3194.0,2.2451]
[1765428527525,3.21014119,3194.1,3194.0,2.40161]
[1765428527822,0.00234119,3194.1,3194.0,2.40161]
[1765428529221,3.962,3195.1,3195.0,1.3652]
[1765428529425,3.962,3195.1,3195.0,2.2451]
[1765428530125,3.96567499,3195.1,3195.0,2.2451]
[1765428531225,3.58857499,3195.1,3195.0,2.2451]
[1765428532521,3.58857499,3195.1,3195.0,2.40156]
[1765428533327,3.55657499,3195.1,3195.0,2.40156]
[1765428533620,3.21147499,3195.1,3195.0,2.40156]
[1765428534324,3.54827499,3195.1,3195.0,2.40156]
[1765428534720,3.21147499,3195.1,3195.0,2.40156]
[1765428534920,0.00367499,3195.1,3195.0,2.40156]
[1765428537020,0.00470116,3195.4,3195.0,2.40156]
[1765428537325,3.8324,3195.6,3195.5,2.2451]
[1765428537518,3.8324,3195.6,3195.5,1.3652]
[1765428538014,3.8324,3195.6,3195.5,0.4789]
[1765428538221,3.83590221,3195.6,3195.5,0.4818734]
[1765428538514,3.83590221,3195.6,3195.5,0.0029734]
[1765428538721,0.5996,3195.4,3195.3,0.15644]
[1765428539124,0.5996,3195.4,3194.8,3.2078]
[1765428539125,0.5996,3194.9,3194.8,3.2078]
[1765428539324,0.5996,3194.9,3194.8,4.7569]
[1765428539624,0.2998,3194.9,3194.8,4.75912047]
[1765428539826,0.592,3194.9,3194.8,4.75912047]
[1765428540023,0.592,3194.9,3194.8,3.98002047]
[1765428540225,0.592,3194.9,3194.8,4.75912047]
[1765428540415,0.592,3194.9,3194.8,3.21002047]
[1765428540921,0.592,3194.9,3194.8,0.00222047]
[1765428541431,0.592,3194.9,3194.8,0.77222047]
[1765428541921,0.592,3194.9,3194.8,0.00222047]
[1765428542427,0.592,3194.9,3194.8,1.55132047]
[1765428542726,0.2998,3194.9,3194.8,1.55132047]
[1765428543224,0.568,3194.9,3194.8,1.55132047]
[1765428543421,3.47950221,3195.6,3195.5,2.0037]
[1765428543626,0.5204,3195.5,3195.4,0.15644]
[1765428546223,3.21130221,3195.6,3195.4,0.92644]
[1765428546425,3.69990221,3195.6,3195.5,0.4546]
[1765428546731,3.69990221,3195.6,3195.5,1.2246]
[1765428547130,3.21130221,3195.6,3195.5,2.0037]
[1765428547425,0.00350221,3195.6,3195.5,2.16014]
[1765428547631,3.67630221,3195.6,3195.5,0.61104]
[1765428547818,3.67630221,3195.6,3195.5,0.15644]
[1765428548126,0.4572,3194.9,3194.8,0.15869047]
[1765428549133,0.2286,3194.9,3194.8,0.15869047]
[1765428549424,0.4493,3194.9,3194.8,0.15869047]
[1765428552327,0.4493,3194.9,3194.8,0.00222047]
[1765428554227,0.4493,3194.9,3194.8,1.44752047]
[1765428554426,0.4493,3194.9,3194.8,0.74392047]
[1765428555026,0.4493,3194.9,3194.8,0.00222047]
[1765428555726,0.4493,3194.9,3194.8,0.74392047]
[1765428556128,0.4493,3194.9,3194.8,1.44752047]
[1765428556331,0.2286,3194.9,3194.8,1.44752047]
[1765428556832,3.3654,3195.0,3194.9,1.4453]
[1765428557623,3.3654,3195.0,3194.9,1.60177]
[1765428557832,3.2078,3195.0,3194.9,1.60177]